bitfinex-derivatives/quotes_BTCF0:USTF0_20250212
["timestamp","ask_amount","ask_price","bid_price","bid_amount"]
[1739335662021,0.2091711,95640.0,95638.0,0.007]
[1739335662528,0.2091711,95640.0,95638.0,0.005]
[1739335662724,0.2091711,95640.0,95639.0,0.002]
[1739335662917,0.2091711,95640.0,95639.0,0.005]
[1739335663122,0.2091711,95640.0,95639.0,0.003]
[1739335663728,0.2091711,95640.0,95638.0,0.005]
[1739335664022,0.2091711,95640.0,95639.0,0.002]
[1739335665436,0.2091711,95640.0,95639.0,0.005]
[1739335666027,0.2091711,95640.0,95639.0,0.002]
[1739335666228,0.43292,95640.0,95613.0,0.3608]
[1739335666530,0.5700121,95621.0,95619.0,0.20462462]
[1739335666732,0.5700121,95621.0,95619.0,0.18833563]
[1739335667530,0.5700121,95621.0,95619.0,0.20423346]
[1739335668520,0.5700121,95621.0,95619.0,0.21523346]
[1739335668721,0.5700121,95621.0,95619.0,0.22023346]
[1739335669131,0.2092121,95621.0,95619.0,0.22023346]
[1739335669637,0.2092121,95621.0,95619.0,0.03189783]
[1739335670824,0.07212,95626.0,95619.0,0.03189783]
[1739335671028,0.1881083,95628.0,95619.0,0.03189783]
[1739335671332,0.1881083,95628.0,95621.0,0.3608]
[1739335672436,0.1881083,95625.0,95621.0,0.3608]
[1739335672826,0.1881083,95625.0,95621.0,0.5740119]
[1739335674426,0.1881083,95625.0,95621.0,0.5840119]
[1739335675540,0.1881083,95636.0,95621.0,0.5840119]
[1739335675849,0.2091868,95633.0,95621.0,0.3748]
[1739335676141,0.2091899,95632.0,95621.0,0.014]
[1739335676342,0.1881083,95636.0,95621.0,0.014]
[1739335676546,0.2091913,95631.0,95621.0,0.014]
[1739335677137,0.2091913,95631.0,95621.0,0.3748]
[1739335679240,0.2091913,95631.0,95621.0,0.3758]
[1739335679440,0.2091954,95629.0,95621.0,0.3718]
[1739335679737,0.2091954,95629.0,95621.0,0.3768]
[1739335680837,0.2091954,95629.0,95621.0,0.3658]
[1739335681037,0.2091954,95629.0,95621.0,0.3758]
[1739335682356,0.0551,95639.0,95621.0,0.3758]
[1739335682556,0.2092078,95623.0,95621.0,0.3758]
[1739335682855,0.2092078,95623.0,95621.0,0.014]
[1739335683262,0.2092078,95623.0,95621.0,0.01]
[1739335683452,0.2092078,95623.0,95621.0,0.014]
[1739335683846,0.0558,95629.0,95619.0,0.01589783]
[1739335684051,0.2092118,95622.0,95621.0,0.014]
[1739335684659,0.5700118,95622.0,95621.0,0.004]
[1739335684955,0.5700118,95622.0,95621.0,0.014]
[1739335685955,0.5700118,95622.0,95621.0,0.01]
[1739335686746,0.5700118,95622.0,95621.0,0.014]
[1739335688661,0.2092118,95622.0,95621.0,0.014]
[1739335689156,0.2091946,95629.0,95621.0,0.014]
[1739335689957,0.2091982,95628.0,95621.0,0.014]
[1739335690164,0.209202,95626.0,95621.0,0.014]
[1739335690460,0.18796276,95622.0,95621.0,0.014]
[1739335692757,0.18796276,95622.0,95621.0,0.5800121]
[1739335692956,0.18796276,95622.0,95621.0,0.5840121]
[1739335694063,0.2091838,95634.0,95621.0,0.5840121]
[1739335694262,0.2091838,95634.0,95624.0,0.12639406]
[1739335696266,0.2101838,95634.0,95624.0,0.12639406]
[1739335696456,0.2101838,95634.0,95624.0,0.12939406]
[1739335697056,0.2101838,95634.0,95624.0,0.14239406]
[1739335697563,0.2101838,95634.0,95624.0,0.13739406]
[1739335697762,0.2101838,95634.0,95624.0,0.14039406]
[1739335698169,0.2101838,95634.0,95624.0,0.15255865]
[1739335698667,0.2101838,95634.0,95624.0,0.36176235]
[1739335698966,0.48775407,95650.0,95647.0,0.2091546]
[1739335698967,0.00056001,95650.0,95647.0,0.2091546]
[1739335699165,0.2091305,95659.0,95633.0,0.3608]
[1739335699166,0.2091305,95659.0,95648.0,0.265152]
[1739335699470,0.2091305,95659.0,95649.0,0.33554396]
[1739335700164,0.2091305,95659.0,95654.0,0.2091397]
[1739335700361,0.2091328,95658.0,95654.0,0.2091397]
[1739335701064,0.2091328,95658.0,95654.0,0.22422307]
[1739335701267,0.008,95659.0,95647.0,0.2091543]
[1739335701458,0.008,95659.0,95644.0,0.00015684]
[1739335701771,0.2091471,95651.0,95647.0,0.2091544]
[1739335702855,0.3608,95648.0,95647.0,0.2091544]
[1739335703869,0.2091471,95651.0,95647.0,0.2091544]
[1739335704261,0.3608,95651.0,95649.0,0.2091503]
[1739335705164,0.3608,95651.0,95644.0,0.01508454]
[1739335705364,0.3608,95649.0,95644.0,0.01508454]
[1739335705763,0.20915,95650.0,95644.0,0.01508454]
[1739335708871,0.20915,95650.0,95645.0,0.2091595]
[1739335710372,0.20915,95650.0,95644.0,0.01508454]
[1739335711275,0.281894,95657.0,95644.0,0.01508454]
[1739335711471,0.209134,95657.0,95653.0,0.2091403]
[1739335712061,0.5699214,95663.0,95655.0,0.2091361]
[1739335712271,0.2091279,95660.0,95656.0,0.2091344]
[1739335712769,0.2091279,95660.0,95656.0,0.0831344]
[1739335712968,0.3608,95663.0,95653.0,0.12639406]
[1739335713178,0.3618,95663.0,95653.0,0.12639406]
[1739335713471,0.2091323,95658.0,95656.0,0.2091344]
[1739335713977,0.2091323,95658.0,95656.0,0.2101344]
[1739335714477,0.36236001,95663.0,95659.0,0.2091284]
[1739335714677,0.3618,95663.0,95659.0,0.2091284]
[1739335714879,0.3618,95663.0,95657.0,0.0539]
[1739335715078,0.2091311,95658.0,95657.0,0.0539]
[1739335716379,0.2091311,95658.0,95657.0,0.0549]
[1739335716581,0.2101311,95658.0,95657.0,0.0549]
[1739335718682,0.001,95658.0,95657.0,0.0549]
[1739335719066,0.36136001,95663.0,95662.0,0.2091223]
[1739335719271,0.3608,95663.0,95662.0,0.2091223]
[1739335720380,0.3608,95663.0,95662.0,0.2101223]
[1739335723988,0.3608,95663.0,95662.0,0.0841223]
[1739335724175,0.3608,95663.0,95662.0,0.001]
[1739335726286,0.00015684,95664.0,95662.0,0.006]
[1739335726486,0.00015684,95664.0,95662.0,0.009]
[1739335730392,0.00015684,95664.0,95662.0,0.2181208]
[1739335732390,0.00015684,95664.0,95662.0,0.009]
[1739335735389,0.00015684,95664.0,95662.0,0.006]
[1739335735590,0.00015684,95664.0,95662.0,0.009]
[1739335738989,0.00015684,95664.0,95662.0,0.006]
[1739335739287,0.00015684,95664.0,95662.0,0.009]
[1739335739690,0.11195684,95664.0,95662.0,0.009]
[1739335740700,0.3608,95663.0,95662.0,0.009]
[1739335741092,0.3608,95663.0,95662.0,0.006]
[1739335741302,0.3608,95663.0,95646.0,1.13416]
[1739335741303,0.2091332,95657.0,95646.0,1.13416]
[1739335741490,0.2091404,95654.0,95646.0,1.13416]
[1739335741690,0.2091427,95653.0,95646.0,1.13416]
[1739335742390,0.2091427,95653.0,95646.0,1.13816]
[1739335743500,0.3608,95663.0,95651.0,0.209145]
[1739335743801,0.07212,95662.0,95653.0,0.12639406]
[1739335744997,0.2091258,95661.0,95653.0,0.13739406]
[1739335745197,0.2091258,95661.0,95653.0,0.13939406]
[1739335745412,0.2091258,95661.0,95653.0,0.34853526]
[1739335745710,0.2091258,95661.0,95653.0,0.34053526]
[1739335746100,0.2091258,95661.0,95653.0,0.13139406]
[1739335746309,0.2091258,95661.0,95655.0,0.2091364]
[1739335746912,0.2091258,95661.0,95653.0,0.13139406]
[1739335747113,0.2091258,95661.0,95656.0,0.2091344]
[1739335747309,0.36136001,95663.0,95661.0,0.2091237]
[1739335747516,0.3608,95663.0,95661.0,0.2091237]
[1739335748615,0.3608,95663.0,95661.0,0.2101237]
[1739335749013,0.5699218,95663.0,95661.0,0.2101237]
[1739335750417,0.2091218,95663.0,95661.0,0.2101237]
[1739335751110,0.2091218,95663.0,95661.0,0.2121237]
[1739335751318,0.2091218,95663.0,95661.0,0.22699786]
[1739335751509,0.1061,95662.0,95661.0,0.22599786]
[1739335751708,0.1061,95662.0,95661.0,0.003]
[1739335752511,0.1061,95662.0,95661.0,0.001]
[1739335753507,0.1061,95662.0,95659.0,0.01491905]
[1739335753709,0.3608,95660.0,95649.0,0.3608]
[1739335754109,0.2091429,95653.0,95649.0,0.3608]
[1739335754316,0.2091429,95653.0,95649.0,0.37557989]
[1739335754519,0.209148,95651.0,95649.0,0.01477989]
[1739335754813,0.3608,95650.0,95646.0,0.7746]
[1739335755015,0.5699486,95650.0,95649.0,0.005]
[1739335755416,0.5699486,95650.0,95649.0,0.008]
[1739335756916,0.5699486,95650.0,95649.0,0.005]
[1739335757216,0.5699486,95650.0,95646.0,0.004]
[1739335757217,0.2091551,95647.0,95646.0,0.004]
[1739335757916,0.3608,95650.0,95644.0,0.00015684]
[1739335758116,0.2091595,95645.0,95644.0,0.00015684]
[1739335758312,0.2091815,95635.0,95634.0,0.00156849]
[1739335758527,0.5699815,95635.0,95634.0,0.00156849]
[1739335758714,0.2091815,95635.0,95634.0,0.00156849]
[1739335760520,0.2101815,95635.0,95634.0,0.01656849]
[1739335761422,0.2101815,95635.0,95634.0,0.02356849]
[1739335775041,0.5709815,95635.0,95634.0,0.02356849]
[1739335778333,0.5709815,95635.0,95625.0,0.00015684]
[1739335778541,0.0523066,95615.0,95576.0,0.37568448]
[1739335778725,0.7216,95595.0,95576.0,0.37568448]
[1739335778924,0.3608,95586.0,95579.0,0.01400742]
[1739335779148,0.3608,95586.0,95576.0,0.37568448]
[1739335779432,0.5700887,95586.0,95576.0,0.37568448]
[1739335779634,0.5700887,95586.0,95578.0,0.01400461]
[1739335780033,0.2092997,95581.0,95580.0,0.3130704]
[1739335780228,0.5700997,95581.0,95580.0,0.3130704]
[1739335780428,0.6431797,95581.0,95580.0,0.3130704]
[1739335781236,0.6461797,95581.0,95580.0,0.3130704]
[1739335784136,0.6461797,95581.0,95580.0,0.2019809]
[1739335784339,0.6461797,95581.0,95580.0,0.0844506]
[1739335784642,0.6461797,95581.0,95576.0,0.00015693]
[1739335784836,0.2093083,95577.0,95576.0,0.00015693]
[1739335785639,0.14532259,95577.0,95576.0,0.00015693]
[1739335785843,0.11871259,95577.0,95576.0,0.00015693]
[1739335786034,0.34442077,95581.0,95577.0,0.2093072]
[1739335786234,0.34386076,95581.0,95576.0,0.00015693]
[1739335786635,0.002,95577.0,95576.0,0.01415693]
[1739335787138,0.001,95577.0,95576.0,0.01215693]
[1739335787341,0.34086076,95581.0,95576.0,0.00015693]
[1739335787538,0.34186076,95581.0,95576.0,0.01215693]
[1739335788340,0.31601076,95581.0,95576.0,0.01215693]
[1739335788946,0.31501076,95581.0,95576.0,0.00515693]
[1739335789144,0.001,95577.0,95576.0,0.01315693]
[1739335789744,0.31601076,95581.0,95576.0,0.01815693]
[1739335789945,0.14261492,95581.0,95576.0,0.01315693]
[1739335790250,0.14261492,95581.0,95576.0,0.01815693]
[1739335790447,0.14161492,95581.0,95576.0,0.00515693]
[1739335790849,0.001,95577.0,95576.0,0.01315693]
[1739335792048,0.14161492,95581.0,95576.0,0.00515693]
[1739335792348,0.14261492,95581.0,95576.0,0.01315693]
[1739335792849,0.14161492,95581.0,95576.0,0.00515693]
[1739335793051,0.001,95577.0,95576.0,0.01315693]
[1739335793247,0.11687492,95581.0,95579.0,0.209304]
[1739335793750,0.11787492,95581.0,95579.0,0.209304]
[1739335793949,0.3608,95589.0,95588.0,0.2092844]
[1739335794162,0.32919693,95597.0,95595.0,0.2092688]
[1739335794340,0.36144,95607.0,95596.0,0.1114]
[1739335794537,0.3608,95618.0,95605.0,0.2092453]
[1739335794742,0.2092262,95615.0,95608.0,0.12639406]
[1739335796051,0.2162262,95615.0,95608.0,0.001]
[1739335796248,0.007,95615.0,95612.0,0.2092302]
[1739335796645,0.008,95615.0,95612.0,0.2092302]
[1739335797750,0.209231,95613.0,95608.0,0.001]
[1739335797945,0.2092353,95611.0,95609.0,0.77384]
[1739335798346,0.001,95615.0,95609.0,0.77384]
[1739335798545,0.011,95615.0,95612.0,0.001]
[1739335798741,0.014,95615.0,95612.0,0.001]
[1739335798941,0.2092273,95614.0,95612.0,0.001]
[1739335799144,0.009,95611.0,95609.0,0.001]
[1739335799451,0.011,95611.0,95609.0,0.001]
[1739335799647,0.009,95611.0,95609.0,0.001]
[1739335799849,0.003,95615.0,95603.0,0.77468]
[1739335800041,0.2092354,95611.0,95603.0,0.7881913]
[1739335800958,0.2112354,95611.0,95603.0,0.7881913]
[1739335801357,0.2112354,95611.0,95603.0,0.9974408]
[1739335801553,0.002,95611.0,95603.0,0.7881913]
[1739335801754,0.011,95611.0,95609.0,0.2102362]
[1739335802461,0.3608,95618.0,95603.0,0.7890713]
[1739335802757,0.00015693,95621.0,95619.0,0.2092143]
[1739335803149,0.00015693,95621.0,95620.0,0.0593]
[1739335804955,0.00915693,95621.0,95620.0,0.0593]
[1739335805554,0.00015693,95621.0,95620.0,0.0593]
[1739335805755,0.01415693,95621.0,95620.0,0.0603]
[1739335807359,0.2091943,95630.0,95620.0,0.0603]
[1739335807360,0.19869213,95628.0,95620.0,0.0603]
[1739335807754,0.19869213,95628.0,95620.0,0.07416904]
[1739335808052,0.19869213,95628.0,95619.0,0.15738334]
[1739335808560,0.21369213,95628.0,95620.0,0.001]
[1739335808750,0.21369213,95628.0,95620.0,0.2102136]
[1739335809168,0.20369213,95628.0,95618.0,0.12639406]
[1739335809354,0.21869213,95628.0,95622.0,0.2092091]
[1739335810553,0.21369213,95628.0,95622.0,0.2092091]
[1739335810751,0.21469213,95628.0,95622.0,0.2092091]
[1739335811353,0.19969213,95628.0,95622.0,0.2092091]
[1739335812362,0.19969213,95628.0,95622.0,0.2102091]
[1739335812961,0.19969213,95628.0,95622.0,0.001]
[1739335814165,0.19969213,95628.0,95623.0,0.209207]
[1739335814659,0.19969213,95628.0,95625.0,0.2092018]
[1739335814849,0.001,95628.0,95626.0,0.2091993]
[1739335815053,0.3608,95638.0,95636.0,0.2091775]
[1739335815964,0.0568,95640.0,95636.0,0.2091775]
[1739335816356,0.003,95638.0,95636.0,0.2091775]
[1739335816671,0.19077719,95638.0,95636.0,0.2091775]
[1739335816854,0.18777719,95638.0,95636.0,0.2121775]
[1739335817659,0.18777719,95638.0,95636.0,0.2131775]
[1739335818563,0.18777719,95638.0,95636.0,0.2141775]
[1739335818761,0.18777719,95638.0,95636.0,0.22564089]
[1739335819560,0.18777719,95638.0,95636.0,0.22264089]
[1739335819761,0.18777719,95638.0,95636.0,0.22564089]
[1739335820159,0.18777719,95638.0,95636.0,0.22264089]
[1739335820358,0.18777719,95638.0,95636.0,0.22564089]
[1739335820560,0.01263632,95638.0,95636.0,0.22564089]
[1739335820765,0.0568,95640.0,95639.0,0.2091726]
[1739335822964,0.0568,95640.0,95639.0,0.2111726]
[1739335825064,0.0568,95640.0,95639.0,0.2121726]
[1739335825767,0.0568,95640.0,95639.0,0.2111726]
[1739335826269,0.0568,95640.0,95639.0,0.2121726]
[1739335826768,0.0568,95640.0,95639.0,0.2091726]
[1739335826967,0.0568,95640.0,95639.0,0.2121726]
[1739335827671,0.0568,95640.0,95639.0,0.2111726]
[1739335827967,0.36136001,95642.0,95641.0,0.2091683]
[1739335828176,0.1135,95659.0,95639.0,0.003]
[1739335828471,0.07212,95658.0,95653.0,0.2091417]
[1739335828673,0.2091334,95657.0,95653.0,0.2091417]
[1739335829374,0.2091379,95655.0,95646.0,0.00015684]
[1739335829568,0.2091379,95655.0,95650.0,0.2091472]
[1739335830671,0.2121379,95655.0,95651.0,0.2091461]
[1739335831972,0.2131379,95655.0,95651.0,0.2091461]
[1739335832369,0.2161379,95655.0,95651.0,0.2091461]
[1739335832771,0.2161379,95655.0,95651.0,0.0831461]
[1739335832968,0.2161379,95655.0,95646.0,0.01116391]
[1739335833175,0.2171379,95655.0,95651.0,0.2091461]
[1739335833976,0.2101379,95655.0,95651.0,0.2091461]
[1739335834183,0.2131379,95655.0,95651.0,0.2091461]
[1739335835570,0.2101379,95655.0,95651.0,0.2091461]
[1739335835776,0.2171379,95655.0,95651.0,0.2091461]
[1739335836572,0.2171379,95655.0,95646.0,0.01116391]
[1739335836573,0.3608,95653.0,95646.0,0.01116391]
[1739335836768,0.2091541,95648.0,95646.0,0.01116391]
[1739335838275,0.2091541,95648.0,95646.0,0.01216391]
[1739335838879,0.5699541,95648.0,95646.0,0.01216391]
[1739335840178,0.5729541,95648.0,95646.0,0.01216391]
[1739335841276,0.5729541,95648.0,95646.0,0.01116391]
[1739335841887,0.5749541,95648.0,95646.0,0.01116391]
[1739335842587,0.5739541,95648.0,95646.0,0.01116391]
[1739335843087,0.5739541,95648.0,95646.0,0.01216391]
[1739335843285,0.5699541,95648.0,95646.0,0.01216391]
[1739335843481,0.5729541,95648.0,95646.0,0.01216391]
[1739335844581,0.5729541,95648.0,95646.0,0.01116391]
[1739335845478,0.6450741,95648.0,95646.0,0.01116391]
[1739335847982,0.6420741,95648.0,95646.0,0.01216391]
[1739335848296,0.06060617,95647.0,95646.0,0.01216391]
[1739335849991,0.06660617,95647.0,95646.0,0.01216391]
[1739335850195,0.06660617,95647.0,95646.0,0.00115684]
[1739335850491,0.13872617,95647.0,95646.0,0.001]
[1739335850697,0.13872617,95647.0,95623.0,0.78459686]
[1739335850890,0.2091885,95632.0,95623.0,0.99380386]
[1739335851094,0.2625918,95631.0,95623.0,0.99380386]
[1739335851299,0.2625918,95631.0,95624.0,0.2092048]
[1739335851888,0.2625918,95631.0,95623.0,0.78539686]
[1739335852088,0.2625918,95631.0,95623.0,0.78459686]
[1739335852996,0.2625918,95631.0,95624.0,0.007]
[1739335853199,0.2625918,95631.0,95626.0,0.2091995]
[1739335853392,0.2625918,95631.0,95627.0,0.2091971]
[1739335854689,0.2635918,95631.0,95627.0,0.2091971]
[1739335855094,0.2635918,95631.0,95627.0,0.2131971]
[1739335855599,0.2625918,95631.0,95627.0,0.2151971]
[1739335855895,0.2091918,95631.0,95627.0,0.2151971]
[1739335858586,0.2091918,95631.0,95627.0,0.2121971]
[1739335858900,0.2091918,95631.0,95627.0,0.2151971]
[1739335861302,0.2091963,95629.0,95627.0,0.005]
[1739335861994,0.2091963,95629.0,95627.0,0.003]
[1739335862195,0.2091963,95629.0,95627.0,0.004]
[1739335863609,0.2091963,95629.0,95627.0,0.003]
[1739335863806,0.2091963,95629.0,95627.0,0.004]
[1739335864304,0.2091963,95629.0,95627.0,0.003]
[1739335864810,0.2101963,95629.0,95627.0,0.001]
[1739335865507,0.2091963,95629.0,95627.0,0.001]
[1739335865695,0.2101963,95629.0,95627.0,0.001]
[1739335866905,0.2101963,95629.0,95627.0,0.002]
[1739335867302,0.2091963,95629.0,95627.0,0.002]
[1739335868012,0.2091963,95629.0,95624.0,0.2092039]
[1739335868307,0.2091963,95629.0,95627.0,0.002]
[1739335869996,0.2091963,95629.0,95627.0,0.003]
[1739335870396,0.2091963,95629.0,95627.0,0.001]
[1739335870900,0.2091963,95629.0,95624.0,0.2122039]
[1739335871207,0.2091963,95629.0,95627.0,0.002]
[1739335873407,0.2091963,95629.0,95624.0,0.2162039]
[1739335873609,0.2091963,95629.0,95624.0,0.2122039]
[1739335873803,0.2091963,95629.0,95624.0,0.2092039]
[1739335874110,0.2091963,95629.0,95627.0,0.003]
[1739335874411,0.2091963,95629.0,95627.0,0.001]
[1739335875107,0.2091963,95629.0,95624.0,0.2152039]
[1739335876611,0.2091963,95629.0,95627.0,0.004]
[1739335877213,0.2091963,95629.0,95627.0,0.001]
[1739335877517,0.2091963,95629.0,95624.0,0.2142039]
[1739335877811,0.2091963,95629.0,95627.0,0.002]
[1739335881608,0.2101963,95629.0,95627.0,0.002]
[1739335883719,0.2091963,95629.0,95627.0,0.3628]
[1739335885310,0.2091963,95629.0,95627.0,0.002]
[1739335885819,0.0535,95631.0,95607.0,0.25166873]
[1739335886013,0.2092185,95618.0,95607.0,0.25166873]
[1739335886219,0.2812985,95618.0,95607.0,0.25166873]
[1739335887108,0.2812985,95618.0,95617.0,0.00415684]
[1739335887314,0.2812985,95618.0,95617.0,0.01517638]
[1739335887621,0.2812985,95618.0,95617.0,0.00915684]
[1739335889026,0.3397985,95618.0,95617.0,0.00915684]
[1739335889923,0.7005985,95618.0,95617.0,1e-08]
[1739335891226,0.71144496,95618.0,95617.0,1e-08]
[1739335892714,0.2092383,95609.0,95608.0,1e-08]
[1739335892925,0.5700383,95609.0,95608.0,1e-08]
[1739335893917,0.5710383,95609.0,95608.0,0.01000001]
[1739335894118,0.5720383,95609.0,95608.0,0.01600001]
[1739335897921,0.3628,95609.0,95597.0,0.00156903]
[1739335898128,0.5700624,95598.0,95580.0,0.12616157]
[1739335898324,0.2092995,95581.0,95580.0,0.13700897]
[1739335898628,0.2092995,95581.0,95580.0,0.0108474]
[1739335898819,0.2092995,95581.0,95576.0,0.2093091]
[1739335899425,0.2092995,95581.0,95580.0,0.004]
[1739335900031,0.2102995,95581.0,95578.0,0.37575732]
[1739335900234,0.2093038,95580.0,95578.0,0.01495732]
[1739335900426,0.2093038,95580.0,95578.0,0.02995732]
[1739335900629,0.2093038,95580.0,95578.0,0.02595732]
[1739335902927,0.2103038,95580.0,95578.0,0.02295732]
[1739335903737,0.2113038,95580.0,95578.0,0.01895732]
[1739335904735,0.2103038,95580.0,95578.0,0.01795732]
[1739335906239,0.2103038,95580.0,95578.0,0.01195732]
[1739335906745,0.2103038,95580.0,95578.0,0.01095732]
[1739335906929,0.3608,95581.0,95574.0,0.0562]
[1739335907237,0.2093094,95577.0,95574.0,0.0562]
[1739335908237,0.2093094,95577.0,95574.0,0.06754411]
[1739335909638,0.2093094,95577.0,95574.0,0.06954411]
[1739335909839,0.001,95577.0,95574.0,0.06954411]
[1739335910041,0.2103094,95577.0,95574.0,0.06954411]
[1739335916632,0.001,95577.0,95574.0,0.06954411]
[1739335916837,0.001,95577.0,95575.0,0.2093127]
[1739335918438,0.00056001,95581.0,95574.0,0.42834411]
[1739335918745,0.07212,95585.0,95580.0,0.2093017]
[1739335920144,0.07212,95585.0,95575.0,0.08384416]
[1739335920145,0.07212,95585.0,95581.0,0.2092989]
[1739335920535,0.2092871,95587.0,95581.0,0.2092989]
[1739335920734,0.07212,95586.0,95575.0,0.08284416]
[1739335920937,0.07212,95586.0,95582.0,0.209297]
[1739335921646,0.004,95585.0,95583.0,0.2092935]
[1739335922249,0.005,95586.0,95585.0,0.2092908]
[1739335922956,0.07212,95587.0,95585.0,0.2092908]
[1739335923948,0.001,95586.0,95585.0,0.2092908]
[1739335924451,0.07312,95587.0,95585.0,0.2092908]
[1739335924844,0.007,95586.0,95585.0,0.2102908]
[1739335925047,0.008,95586.0,95585.0,0.2102908]
[1739335925649,0.001,95586.0,95585.0,0.2102908]
[1739335926240,0.001,95586.0,95585.0,0.2092908]
[1739335926443,0.008,95586.0,95585.0,0.2102908]
[1739335926645,0.007,95586.0,95585.0,0.2102908]
[1739335927355,0.008,95586.0,95585.0,0.2102908]
[1739335928660,0.2172886,95586.0,95585.0,0.2102908]
[1739335931155,0.2172886,95586.0,95585.0,0.22124982]
[1739335934052,0.008,95586.0,95585.0,0.22124982]
[1739335934250,0.07208,95604.0,95585.0,0.01195902]
[1739335934451,0.209253,95603.0,95598.0,0.2092617]
[1739335935660,0.3678,95600.0,95598.0,0.2092617]
[1739335936246,0.3758,95600.0,95598.0,0.2102617]
[1739335936859,0.3808,95600.0,95598.0,0.2102617]
[1739335937851,0.3808,95600.0,95598.0,0.001]
[1739335938048,0.5900599,95600.0,95598.0,0.01229871]
[1739335938367,0.5900599,95600.0,95598.0,0.001]
[1739335939154,0.0672,95599.0,95598.0,0.001]
[1739335940362,0.0722,95599.0,95598.0,0.001]
[1739335940864,0.2964601,95599.0,95598.0,0.001]
[1739335942456,0.02,95599.0,95598.0,0.001]
[1739335942857,0.02,95599.0,95596.0,0.0842665]
[1739335943853,0.005,95599.0,95596.0,0.0852665]
[1739335944157,0.005,95599.0,95598.0,0.2092623]
[1739335944158,0.019,95599.0,95598.0,0.2092623]
[1739335944451,0.014,95599.0,95598.0,0.2092623]
[1739335944651,0.018,95599.0,95598.0,0.2092623]
[1739335945359,0.019,95599.0,95598.0,0.2102623]
[1739335946559,0.02,95599.0,95598.0,0.2102623]
[1739335947866,0.02,95599.0,95598.0,0.001]
[1739335948161,0.02,95599.0,95598.0,0.2102623]
[1739335952981,0.02,95599.0,95598.0,0.0842623]
[1739335957992,0.02,95599.0,95591.0,0.37175902]
[1739335958293,0.02,95599.0,95596.0,0.2092652]
[1739335959185,0.014,95599.0,95596.0,0.2092652]
[1739335960083,0.018,95599.0,95596.0,0.2102652]
[1739335960591,0.015,95599.0,95596.0,0.2102652]
[1739335960888,0.20708475,95599.0,95596.0,0.2102652]
[1739335964093,0.20708475,95599.0,95596.0,0.001]
[1739335964288,0.019,95599.0,95596.0,0.2102652]
[1739335965089,0.2092624,95598.0,95596.0,0.2102652]
[1739335966191,0.2092624,95598.0,95596.0,0.2092652]
[1739335966395,0.2242624,95598.0,95596.0,0.2102652]
[1739335967597,0.2282624,95598.0,95596.0,0.2102652]
[1739335967789,0.2282624,95598.0,95596.0,0.0842652]
[1739335967990,0.2282624,95598.0,95596.0,0.001]
[1739335968199,0.2282624,95598.0,95596.0,0.2102652]
[1739335971098,0.2132624,95598.0,95596.0,0.2092652]
[1739335971295,0.2092624,95598.0,95596.0,0.2152652]
[1739335971806,0.2092624,95598.0,95596.0,0.2122652]
[1739335971999,0.2092624,95598.0,95596.0,0.2132652]
[1739335972503,0.2813024,95598.0,95596.0,0.004]
[1739335972701,0.2813024,95598.0,95596.0,0.002]
[1739335972900,0.2813024,95598.0,95596.0,0.003]
[1739335974200,0.2813024,95598.0,95596.0,0.001]
[1739335974394,0.07204,95598.0,95591.0,0.01095902]
[1739335974594,0.2092755,95592.0,95589.0,0.08284416]
[1739335974794,0.0706,95591.0,95584.0,0.9837727]
[1739335975006,0.0694,95590.0,95584.0,0.9831327]
[1739335975906,0.0694,95590.0,95584.0,0.9970031]
[1739335976106,0.0704,95590.0,95584.0,1.0060031]
[1739335976403,0.2092829,95589.0,95584.0,1.0060031]
[1739335977005,0.2092829,95589.0,95584.0,1.0100031]
[1739335977506,0.2092829,95589.0,95584.0,0.9970031]
[1739335977805,0.2092829,95589.0,95584.0,1.3638031]
[1739335978305,0.2092829,95589.0,95584.0,1.3608031]
[1739335978606,0.2092829,95589.0,95584.0,1.3648031]
[1739335979103,0.2092829,95589.0,95584.0,1.3638031]
[1739335980500,0.0694,95590.0,95586.0,0.2092872]
[1739335980700,0.0694,95590.0,95587.0,0.2092858]
[1739335982107,0.0694,95590.0,95587.0,0.2122858]
[1739335982297,0.0694,95590.0,95588.0,0.2092828]
[1739335983707,0.0694,95590.0,95588.0,0.2112828]
[1739335989309,0.0706,95591.0,95588.0,0.2112828]
[1739335990412,0.26028342,95598.0,95588.0,0.002]
[1739335990613,0.18828342,95598.0,95588.0,0.08484416]
[1739335990803,0.18828342,95598.0,95596.0,0.2092654]
[1739335991303,0.18828342,95597.0,95596.0,0.2092654]
[1739335992703,0.19428342,95597.0,95596.0,0.2102654]
[1739335994004,0.13858605,95597.0,95596.0,0.22402276]
[1739335994408,0.13858605,95597.0,95596.0,0.01475736]
[1739335994606,0.49938605,95597.0,95596.0,0.01475736]
[1739335994801,0.3678,95597.0,95596.0,0.001]
[1739335995308,0.3678,95597.0,95570.0,0.08284416]
[1739335995510,0.2093062,95578.0,95576.0,0.01558325]
[1739335995816,0.0654,95577.0,95576.0,0.00156922]
[1739335996916,0.0654,95577.0,95562.0,0.77444]
[1739335997115,0.5701193,95572.0,95562.0,0.77444]
[1739335997310,0.5701193,95572.0,95569.0,0.01359226]
[1739335998309,0.5701193,95572.0,95562.0,0.77444]
[1739335998508,0.5711193,95572.0,95571.0,0.19135697]
[1739335998716,0.5711193,95572.0,95571.0,0.01715694]
[1739335999724,0.2093637,95552.0,95550.0,0.08284416]
[1739335999918,0.2093637,95552.0,95550.0,0.01367551]
[1739336000104,0.3608,95558.0,95540.0,0.85736416]
[1739336000308,0.3608,95544.0,95540.0,0.85736416]
[1739336000506,0.3608,95544.0,95540.0,0.77452]
[1739336000709,0.3608,95544.0,95543.0,0.20123705]
[1739336001918,0.2093959,95537.0,95534.0,0.00015694]
[1739336002118,0.2773959,95537.0,95534.0,0.00015694]
[1739336002312,0.2931,95537.0,95523.0,0.01383298]
[1739336002622,0.2094579,95509.0,95505.0,0.61088446]
[1739336002811,0.2094579,95509.0,95505.0,0.62478129]
[1739336003010,0.3608,95514.0,95505.0,0.26398129]
[1739336003215,0.2094638,95507.0,95505.0,0.26398129]
[1739336005019,0.2134638,95507.0,95505.0,0.26398129]
[1739336006022,0.3608,95506.0,95505.0,0.26398129]
[1739336006718,0.3608,95506.0,95505.0,0.01389683]
[1739336006920,0.3608,95506.0,95503.0,0.00157057]
[1739336007117,0.07204,95505.0,95503.0,0.00157057]
[1739336009420,0.3608,95551.0,95504.0,0.3608]
[1739336009619,0.2093607,95554.0,95531.0,0.209407]